[Event "Senior Men Russian Championship 2022_HL"]
[Site "Saint-Petersburg, Russia"]
[Date "2022.09.26"]
[Round "3.6"]
[White "Osmolny, Vladimir I."]
[Black "Lisenko, Alexander V"]
[Result "1/2-1/2"]
[TimeControl "40+30"]
[WhiteElo "2092"]
[BlackElo "2307"]

1. c4 {[%clk 01:30:57]} {[%emt 00:00:02]} c5 {[%clk 01:30:53]} {[%emt
00:00:07]} 2. Nc3 {[%clk 01:31:02]} {[%emt 00:00:25]} Nf6 {[%clk 01:31:00]}
{[%emt 00:00:23]} 3. Nf3 {[%clk 01:30:59]} {[%emt 00:00:33]} e6 {[%clk
01:28:01]} {[%emt 00:03:29]} 4. e3 {[%clk 01:30:45]} {[%emt 00:00:44]} d5
{[%clk 01:27:55]} {[%emt 00:00:35]} 5. d4 {[%clk 01:31:02]} {[%emt 00:00:14]}
cxd4 {[%clk 01:14:54]} {[%emt 00:13:31]} 6. exd4 {[%clk 01:31:08]} {[%emt
00:00:24]} dxc4 {[%clk 01:15:10]} {[%emt 00:00:14]} 7. Bxc4 {[%clk 01:31:11]}
{[%emt 00:00:28]} Be7 {[%clk 01:14:46]} {[%emt 00:00:53]} 8. O-O {[%clk
01:30:22]} {[%emt 00:01:19]} Nc6 {[%clk 01:12:50]} {[%emt 00:02:25]} 9. Bf4
{[%clk 01:28:39]} {[%emt 00:02:13]} O-O {[%clk 01:12:07]} {[%emt 00:01:13]} 10.
a3 {[%clk 01:25:12]} {[%emt 00:03:59]} b6 {[%clk 01:05:30]} {[%emt 00:07:06]}
11. Qd3 {[%clk 01:16:42]} {[%emt 00:09:00]} Bb7 {[%clk 01:03:54]} {[%emt
00:02:06]} 12. Rfd1 {[%clk 01:12:46]} {[%emt 00:04:26]} Rc8 {[%clk 00:59:27]}
{[%emt 00:04:56]} 13. Ba2 {[%clk 01:10:34]} {[%emt 00:02:43]} g6 {[%clk
00:48:24]} {[%emt 00:11:32]} 14. Rac1 {[%clk 01:06:14]} {[%emt 00:04:50]} Qd7
{[%clk 00:28:10]} {[%emt 00:20:44]} 15. h3 {[%clk 00:50:25]} {[%emt 00:16:20]}
Rfd8 {[%clk 00:25:26]} {[%emt 00:03:13]} 16. b4 {[%clk 00:48:24]} {[%emt
00:02:33]} Qe8 {[%clk 00:24:52]} {[%emt 00:01:02]} 17. Qe3 {[%clk 00:47:12]}
{[%emt 00:01:43]} Rd7 {[%clk 00:19:00]} {[%emt 00:06:21]} 18. Rd3 {[%clk
00:43:23]} {[%emt 00:04:20]} Bf8 {[%clk 00:16:54]} {[%emt 00:02:34]} 19. Rcd1
{[%clk 00:42:23]} {[%emt 00:01:32]} Bg7 {[%clk 00:15:13]} {[%emt 00:02:09]} 20.
d5 {[%clk 00:36:18]} {[%emt 00:06:36]} exd5 {[%clk 00:14:24]} {[%emt 00:01:19]}
21. Qxe8+ {[%clk 00:34:30]} {[%emt 00:02:19]} Rxe8 {[%clk 00:14:33]} {[%emt
00:00:20]} 22. Nxd5 {[%clk 00:33:14]} {[%emt 00:01:46]} Nxd5 {[%clk 00:13:57]}
{[%emt 00:01:05]} 23. Bxd5 {[%clk 00:32:43]} {[%emt 00:01:02]} Ne5 {[%clk
00:06:12]} {[%emt 00:08:15]} 24. Bxe5 {[%clk 00:31:58]} {[%emt 00:01:15]} Bxe5
{[%clk 00:06:38]} {[%emt 00:00:04]} 25. Bxb7 {[%clk 00:32:21]} {[%emt
00:00:08]} Rxb7 {[%clk 00:07:05]} {[%emt 00:00:02]} 26. Rd8 {[%clk 00:28:41]}
{[%emt 00:04:11]} Rbe7 {[%clk 00:07:10]} {[%emt 00:00:24]} 27. Rxe8+ {[%clk
00:27:46]} {[%emt 00:01:25]} Rxe8 {[%clk 00:07:40]} 28. Rd7 {[%clk 00:20:32]}
{[%emt 00:07:45]} a5 {[%clk 00:06:27]} {[%emt 00:01:41]} 29. Rb7 {[%clk
00:20:24]} {[%emt 00:00:39]} axb4 {[%clk 00:06:44]} {[%emt 00:00:13]} 30. axb4
{[%clk 00:20:33]} {[%emt 00:00:22]} Rb8 {[%clk 00:07:12]} 31. Rd7 {[%clk
00:09:53]} {[%emt 00:11:10]} Bf6 {[%clk 00:07:18]} {[%emt 00:00:23]} 32. Kf1
{[%clk 00:09:01]} {[%emt 00:01:23]} Rd8 {[%clk 00:07:28]} {[%emt 00:00:19]} 33.
Rxd8+ {[%clk 00:08:36]} {[%emt 00:00:56]} Bxd8 {[%clk 00:07:55]} {[%emt
00:00:02]} 34. Nd2 {[%clk 00:08:42]} {[%emt 00:00:24]} Kf8 {[%clk 00:07:38]}
{[%emt 00:00:48]} 35. Ke2 {[%clk 00:08:38]} {[%emt 00:00:34]} Ke7 {[%clk
00:06:23]} {[%emt 00:01:44]} 36. Kd3 {[%clk 00:08:38]} {[%emt 00:00:30]} Kd6
{[%clk 00:06:09]} {[%emt 00:00:44]} 37. Kc4 {[%clk 00:08:38]} {[%emt 00:00:30]}
Kc6 {[%clk 00:06:21]} {[%emt 00:00:17]} 38. b5+ {[%clk 00:08:53]} {[%emt
00:00:17]} Kd6 {[%clk 00:06:41]} {[%emt 00:00:09]} 39. Ne4+ {[%clk 00:07:21]}
{[%emt 00:02:02]} Ke5 {[%clk 00:06:53]} {[%emt 00:00:18]} 40. Nd2 {[%clk
00:33:02]} {[%emt 00:04:49]} Be7 {[%clk 00:35:20]} {[%emt 00:02:03]} 41. Nf3+
{[%clk 00:29:42]} {[%emt 00:03:52]} Ke4 {[%clk 00:25:07]} {[%emt 00:10:42]} 42.
Nd2 {[%clk 00:29:58]} {[%emt 00:00:15]} Ke5 {[%clk 00:25:25]} {[%emt 00:00:11]}
43. Nf3+ {[%clk 00:30:22]} {[%emt 00:00:07]} Kd6 {[%clk 00:24:48]} {[%emt
00:01:06]} 44. Ne1 {[%clk 00:28:24]} {[%emt 00:02:29]} f5 {[%clk 00:24:07]}
{[%emt 00:01:10]} 45. g3 {[%clk 00:24:27]} {[%emt 00:04:28]} Ke6 {[%clk
00:19:47]} {[%emt 00:04:49]} 46. Nd3 {[%clk 00:24:11]} {[%emt 00:00:47]} g5
{[%clk 00:19:32]} {[%emt 00:00:44]} 47. f3 {[%clk 00:23:32]} {[%emt 00:01:10]}
h6 {[%clk 00:14:50]} {[%emt 00:05:11]} 48. g4 {[%clk 00:19:18]} {[%emt
00:04:45]} fxg4 {[%clk 00:14:34]} {[%emt 00:00:46]} 49. hxg4 {[%clk 00:19:17]}
{[%emt 00:00:30]} Bf6 {[%clk 00:14:22]} {[%emt 00:00:41]} 50. Nb4 {[%clk
00:18:24]} {[%emt 00:01:25]} Ke5 {[%clk 00:12:35]} {[%emt 00:02:15]} 51. Nd3+
{[%clk 00:18:52]} {[%emt 00:00:04]} Ke6 {[%clk 00:09:22]} {[%emt 00:03:42]} 52.
Nb4 {[%clk 00:16:05]} {[%emt 00:03:18]} Be7 {[%clk 00:08:46]} {[%emt 00:01:05]}
53. Nd3 {[%clk 00:16:17]} {[%emt 00:00:18]} Ke5 {[%clk 00:06:44]} {[%emt
00:00:38]} 1/2-1/2

[Event "Senior Men Russian Championship 2022_HL"]
[Site "Saint-Petersburg, Russia"]
[Date "2022.09.26"]
[Round "3.10"]
[White "Berlin, Grigoriy"]
[Black "Kornilov, Anatoly"]
[Result "1-0"]
[TimeControl "40+30"]
[WhiteElo "2186"]
[BlackElo "2094"]

1. d4 {[%clk 01:30:56]} {[%emt 00:00:03]} Nf6 {[%clk 01:30:50]} {[%emt
00:00:10]} 2. Nf3 {[%clk 01:31:19]} {[%emt 00:00:07]} g6 {[%clk 01:30:59]}
{[%emt 00:00:20]} 3. Bf4 {[%clk 01:31:27]} {[%emt 00:00:22]} Bg7 {[%clk
01:31:20]} {[%emt 00:00:10]} 4. h3 {[%clk 01:31:26]} {[%emt 00:00:31]} O-O
{[%clk 01:31:36]} {[%emt 00:00:13]} 5. e3 {[%clk 01:31:47]} {[%emt 00:00:10]}
d6 {[%clk 01:31:50]} {[%emt 00:00:16]} 6. Be2 {[%clk 01:30:58]} {[%emt
00:01:18]} Nbd7 {[%clk 01:32:03]} {[%emt 00:00:16]} 7. c4 {[%clk 01:30:09]}
{[%emt 00:01:21]} Re8 {[%clk 01:30:02]} {[%emt 00:02:30]} 8. O-O {[%clk
01:29:47]} {[%emt 00:00:53]} e6 {[%clk 01:27:08]} {[%emt 00:03:23]} 9. Nc3
{[%clk 01:28:43]} {[%emt 00:01:34]} a6 {[%clk 01:27:14]} {[%emt 00:00:25]} 10.
Bh2 {[%clk 01:21:51]} {[%emt 00:07:22]} Qe7 {[%clk 01:27:26]} {[%emt 00:00:16]}
11. Re1 {[%clk 01:17:59]} {[%emt 00:04:23]} b6 {[%clk 01:27:41]} {[%emt
00:00:16]} 12. a4 {[%clk 01:17:44]} {[%emt 00:00:45]} a5 {[%clk 01:27:21]}
{[%emt 00:00:50]} 13. Nb5 {[%clk 01:15:52]} {[%emt 00:02:22]} Nb8 {[%clk
01:27:37]} {[%emt 00:00:14]} 14. c5 {[%clk 01:10:22]} {[%emt 00:06:00]} Rd8
{[%clk 01:27:53]} {[%emt 00:00:14]} 15. cxb6 {[%clk 01:08:33]} {[%emt
00:02:20]} cxb6 {[%clk 01:28:12]} {[%emt 00:00:10]} 16. Rc1 {[%clk 01:08:50]}
{[%emt 00:00:12]} Na6 {[%clk 01:28:04]} {[%emt 00:00:39]} 17. Rc6 {[%clk
01:07:31]} {[%emt 00:01:49]} Ne8 {[%clk 01:27:55]} {[%emt 00:00:38]} 18. Rxb6
{[%clk 01:05:06]} {[%emt 00:02:56]} Nb4 {[%clk 01:28:12]} {[%emt 00:00:12]} 19.
Nd2 {[%clk 01:02:26]} {[%emt 00:03:10]} Bb7 {[%clk 01:24:26]} {[%emt 00:04:17]}
20. Bf3 {[%clk 00:50:50]} {[%emt 00:12:05]} Nd5 {[%clk 01:24:44]} {[%emt
00:00:13]} 21. Bxd5 {[%clk 00:50:53]} {[%emt 00:00:27]} Bxd5 {[%clk 01:25:06]}
{[%emt 00:00:08]} 22. Nc3 {[%clk 00:50:12]} {[%emt 00:01:10]} Nc7 {[%clk
01:21:47]} {[%emt 00:03:49]} 23. Nde4 {[%clk 00:46:01]} {[%emt 00:04:41]} e5
{[%clk 01:21:18]} {[%emt 00:00:59]} 24. Nxd5 {[%clk 00:36:35]} {[%emt
00:09:56]} Nxd5 {[%clk 01:21:39]} {[%emt 00:00:09]} 25. Rb5 {[%clk 00:36:58]}
{[%emt 00:00:08]} Nb4 {[%clk 01:21:33]} {[%emt 00:00:36]} 26. Nc3 {[%clk
00:35:27]} {[%emt 00:02:00]} Rdc8 {[%clk 01:20:47]} {[%emt 00:01:16]} 27. dxe5
{[%clk 00:33:14]} {[%emt 00:02:44]} dxe5 {[%clk 01:21:04]} {[%emt 00:00:12]} 28.
Nd5 {[%clk 00:32:46]} {[%emt 00:00:58]} Nxd5 {[%clk 01:20:16]} {[%emt
00:01:19]} 29. Qxd5 {[%clk 00:33:03]} {[%emt 00:00:13]} Rab8 {[%clk 01:17:41]}
{[%emt 00:03:05]} 30. Rd1 {[%clk 00:29:08]} {[%emt 00:04:25]} Rxb5 {[%clk
01:15:53]} {[%emt 00:02:19]} 31. Qxb5 {[%clk 00:29:26]} {[%emt 00:00:10]} Qb4
{[%clk 01:15:52]} {[%emt 00:00:31]} 32. g4 {[%clk 00:28:09]} {[%emt 00:01:47]}
f6 {[%clk 01:15:53]} {[%emt 00:00:29]} 33. Qd5+ {[%clk 00:25:33]} {[%emt
00:03:06]} Kh8 {[%clk 01:15:59]} {[%emt 00:00:24]} 34. g5 {[%clk 00:23:18]}
{[%emt 00:02:45]} Qxb2 {[%clk 01:15:10]} {[%emt 00:01:19]} 35. gxf6 {[%clk
00:18:47]} {[%emt 00:05:01]} Bxf6 {[%clk 01:12:04]} {[%emt 00:03:35]} 36. Qf7
{[%clk 00:18:23]} {[%emt 00:00:55]} Bg7 {[%clk 01:11:35]} {[%emt 00:00:58]} 37.
Bg3 {[%clk 00:16:10]} {[%emt 00:02:43]} Qc2 {[%clk 01:07:39]} {[%emt 00:04:26]}
38. Rd7 {[%clk 00:15:30]} {[%emt 00:01:11]} Rg8 {[%clk 01:08:03]} {[%emt
00:00:06]} 39. Qxg7+ {[%clk 00:15:17]} {[%emt 00:00:43]} Rxg7 {[%clk 01:08:19]}
{[%emt 00:00:14]} 40. Rd8+ {[%clk 00:45:47]} {[%emt 00:00:01]} 1-0

[Event "Senior Men Russian Championship 2022_HL"]
[Site "Saint-Petersburg, Russia"]
[Date "2022.09.26"]
[Round "3.7"]
[White "Filipenko, Alexander V"]
[Black "Dragomarezkij, Evgeni"]
[Result "1/2-1/2"]
[TimeControl "40+30"]
[WhiteElo "2171"]
[BlackElo "2297"]

1. e4 {[%clk 01:30:55]} {[%emt 00:00:04]} e5 {[%clk 01:30:53]} {[%emt
00:00:07]} 2. Nf3 {[%clk 01:31:20]} {[%emt 00:00:05]} Nf6 {[%clk 01:31:14]}
{[%emt 00:00:10]} 3. Nc3 {[%clk 01:31:44]} {[%emt 00:00:06]} Bb4 {[%clk
01:31:34]} {[%emt 00:00:10]} 4. Nxe5 {[%clk 01:31:20]} {[%emt 00:00:53]} O-O
{[%clk 01:31:56]} {[%emt 00:00:08]} 5. Nd3 {[%clk 01:27:31]} {[%emt 00:04:18]}
Bxc3 {[%clk 01:32:00]} {[%emt 00:00:28]} 6. dxc3 {[%clk 01:27:51]} {[%emt
00:00:10]} Nxe4 {[%clk 01:32:23]} {[%emt 00:00:07]} 7. Be2 {[%clk 01:25:07]}
{[%emt 00:03:14]} d6 {[%clk 01:32:27]} {[%emt 00:00:25]} 8. O-O {[%clk
01:25:17]} {[%emt 00:00:20]} Nd7 {[%clk 01:32:32]} {[%emt 00:00:25]} 9. f3
{[%clk 01:22:08]} {[%emt 00:03:40]} Nec5 {[%clk 01:25:15]} {[%emt 00:07:47]} 10.
Re1 {[%clk 01:20:36]} {[%emt 00:02:02]} Re8 {[%clk 01:18:54]} {[%emt 00:06:51]}
11. Bf1 {[%clk 01:19:53]} {[%emt 00:01:13]} b6 {[%clk 01:10:39]} {[%emt
00:08:43]} 12. Rxe8+ {[%clk 01:13:40]} {[%emt 00:06:44]} Qxe8 {[%clk 01:10:41]}
{[%emt 00:00:29]} 13. Qe2 {[%clk 01:09:16]} {[%emt 00:04:53]} Ba6 {[%clk
01:05:57]} {[%emt 00:05:14]} 14. Qf2 {[%clk 01:00:49]} {[%emt 00:08:56]} Ne5
{[%clk 01:04:41]} {[%emt 00:01:47]} 15. Nxc5 {[%clk 00:57:21]} {[%emt
00:03:58]} Bxf1 {[%clk 01:04:54]} {[%emt 00:00:15]} 16. Qxf1 {[%clk 00:55:53]}
{[%emt 00:02:00]} bxc5 {[%clk 01:04:37]} {[%emt 00:00:46]} 17. Bf4 {[%clk
00:54:58]} {[%emt 00:01:26]} Ng6 {[%emt 00:02:38]} 18. Bg3 {[%emt 00:00:01]}
Qe6 {[%emt 00:00:02]} 19. c4 {[%emt 00:00:04]} 1/2-1/2

[Event "Senior Men Russian Championship 2022_HL"]
[Site "Saint-Petersburg, Russia"]
[Date "2022.09.26"]
[Round "3.2"]
[White "Kalegin, Evgenij"]
[Black "Ionov, Sergey"]
[Result "1/2-1/2"]
[TimeControl "40+30"]
[WhiteElo "2386"]
[BlackElo "2513"]

1. e4 {[%clk 01:30:55]} {[%emt 00:00:04]} c5 {[%clk 01:30:38]} {[%emt
00:00:23]} 2. Nf3 {[%clk 01:31:14]} {[%emt 00:00:11]} d6 {[%clk 01:31:00]}
{[%emt 00:00:08]} 3. Bb5+ {[%clk 01:31:21]} {[%emt 00:00:24]} Bd7 {[%clk
01:29:57]} {[%emt 00:01:33]} 4. Bxd7+ {[%clk 01:31:41]} {[%emt 00:00:09]} Qxd7
{[%clk 01:30:24]} {[%emt 00:00:03]} 5. O-O {[%clk 01:31:49]} {[%emt 00:00:23]}
Nf6 {[%clk 01:30:49]} {[%emt 00:00:05]} 6. e5 {[%clk 01:30:16]} {[%emt
00:02:03]} dxe5 {[%clk 01:31:13]} {[%emt 00:00:06]} 7. Nxe5 {[%clk 01:30:42]}
{[%emt 00:00:03]} Qc7 {[%clk 01:30:40]} {[%emt 00:01:03]} 8. d4 {[%clk
01:29:58]} {[%emt 00:01:14]} cxd4 {[%clk 01:31:08]} {[%emt 00:00:03]} 9. Bf4
{[%clk 01:26:26]} {[%emt 00:04:02]} Qb6 {[%clk 01:31:31]} {[%emt 00:00:07]} 10.
Nd2 {[%clk 01:18:29]} {[%emt 00:08:28]} Nc6 {[%clk 01:31:38]} {[%emt 00:00:23]}
11. c3 {[%clk 00:55:02]} {[%emt 00:23:56]} dxc3 {[%clk 01:27:06]} {[%emt
00:05:02]} 12. bxc3 {[%clk 00:55:20]} {[%emt 00:00:12]} Nxe5 {[%clk 01:25:55]}
{[%emt 00:01:41]} 13. Bxe5 {[%clk 00:55:39]} {[%emt 00:00:11]} Nd7 {[%clk
01:17:10]} {[%emt 00:09:15]} 14. Nf3 {[%clk 00:47:42]} {[%emt 00:08:28]} f6
{[%clk 01:15:26]} {[%emt 00:02:13]} 15. Rb1 {[%clk 00:43:08]} {[%emt 00:05:04]}
Qa6 {[%clk 01:07:14]} {[%emt 00:08:42]} 16. Bd4 {[%clk 00:36:24]} {[%emt
00:07:15]} e5 {[%clk 01:05:16]} {[%emt 00:02:26]} 17. Be3 {[%clk 00:31:11]}
{[%emt 00:05:45]} O-O-O {[%clk 00:55:08]} {[%emt 00:10:38]} 18. c4 {[%clk
00:29:48]} {[%emt 00:01:53]} Bc5 {[%clk 00:54:11]} {[%emt 00:01:26]} 19. Qe2
{[%clk 00:28:03]} {[%emt 00:02:16]} Qc6 {[%clk 00:42:51]} {[%emt 00:11:48]} 20.
a4 {[%clk 00:26:09]} {[%emt 00:02:25]} Kb8 {[%clk 00:41:33]} {[%emt 00:01:48]}
21. a5 {[%clk 00:25:29]} {[%emt 00:01:10]} Ka8 {[%clk 00:41:44]} {[%emt
00:00:19]} 22. Nd2 {[%clk 00:20:52]} {[%emt 00:05:06]} Bxe3 {[%clk 00:37:21]}
{[%emt 00:04:54]} 23. Qxe3 {[%clk 00:21:04]} {[%emt 00:00:18]} Nc5 {[%clk
00:37:34]} {[%emt 00:00:17]} 24. Nb3 {[%clk 00:15:24]} {[%emt 00:06:11]} Na6
{[%clk 00:34:37]} {[%emt 00:03:26]} 25. c5 {[%clk 00:13:07]} {[%emt 00:02:47]}
Rd7 {[%clk 00:30:13]} {[%emt 00:04:54]} 26. Rfd1 {[%clk 00:05:56]} {[%emt
00:07:40]} Rhd8 {[%clk 00:29:31]} {[%emt 00:01:12]} 27. Rxd7 {[%clk 00:06:00]}
{[%emt 00:00:26]} Qxd7 {[%clk 00:26:31]} {[%emt 00:03:29]} 28. h3 {[%clk
00:05:40]} {[%emt 00:00:51]} Qd3 {[%clk 00:21:05]} {[%emt 00:05:55]} 29. Qc1
{[%clk 00:05:42]} {[%emt 00:00:29]} Rc8 {[%clk 00:17:59]} {[%emt 00:03:34]} 30.
Qb2 {[%clk 00:04:51]} {[%emt 00:01:21]} g6 {[%clk 00:11:54]} {[%emt 00:06:35]}
31. Nd4 {[%clk 00:01:07]} {[%emt 00:04:15]} Nxc5 {[%clk 00:12:14]} {[%emt
00:00:10]} 32. Ne6 {[%clk 00:01:29]} {[%emt 00:00:09]} Qa6 {[%clk 00:09:27]}
{[%emt 00:03:15]} 33. Nxc5 {[%clk 00:01:07]} {[%emt 00:00:53]} Rxc5 {[%clk
00:09:54]} {[%emt 00:00:02]} 34. Qb4 {[%clk 00:00:57]} {[%emt 00:00:41]} Rc8
{[%clk 00:06:08]} {[%emt 00:04:16]} 35. Rd1 {[%clk 00:01:11]} {[%emt 00:00:16]}
Qe6 {[%clk 00:03:38]} {[%emt 00:02:58]} 36. Rd6 {[%clk 00:01:17]} {[%emt
00:00:25]} Qe7 {[%clk 00:04:00]} {[%emt 00:00:08]} 37. a6 {[%clk 00:01:18]}
{[%emt 00:00:30]} bxa6 {[%clk 00:03:51]} {[%emt 00:00:39]} 38. Qd2 {[%clk
00:01:10]} {[%emt 00:00:38]} e4 {[%clk 00:01:21]} {[%emt 00:02:59]} 39. Rd7
{[%clk 00:01:10]} {[%emt 00:00:32]} Qc5 {[%clk 00:01:42]} {[%emt 00:00:07]} 40.
Kh2 {[%clk 00:31:16]} {[%emt 00:00:25]} h5 {[%clk 00:31:25]} {[%emt 00:00:47]}
41. Rg7 {[%clk 00:21:49]} {[%emt 00:09:56]} h4 {[%clk 00:15:32]} {[%emt
00:16:24]} 42. Qd7 {[%clk 00:21:33]} {[%emt 00:00:46]} Rb8 {[%clk 00:15:43]}
{[%emt 00:00:17]} 43. Rxg6 {[%clk 00:21:38]} {[%emt 00:00:27]} a5 {[%clk
00:14:40]} {[%emt 00:01:33]} 44. Rxf6 {[%clk 00:18:14]} {[%emt 00:03:54]} Qe5+
{[%clk 00:14:39]} {[%emt 00:00:30]} 45. g3 {[%clk 00:18:41]} {[%emt 00:00:04]}
hxg3+ {[%clk 00:14:03]} {[%emt 00:01:06]} 46. Kg2 {[%clk 00:19:06]} {[%emt
00:00:05]} Rg8 {[%clk 00:13:00]} {[%emt 00:01:33]} 47. Qf7 {[%clk 00:16:34]}
{[%emt 00:03:02]} Rd8 {[%clk 00:11:18]} {[%emt 00:02:11]} 48. Rf5 {[%clk
00:14:17]} {[%emt 00:02:48]} Qd4 {[%clk 00:09:46]} {[%emt 00:02:01]} 49. Qe6
{[%clk 00:10:56]} {[%emt 00:03:53]} Qb6 {[%clk 00:05:10]} {[%emt 00:05:04]} 50.
Qxe4+ {[%clk 00:11:12]} {[%emt 00:00:15]} Qb7 {[%clk 00:05:38]} {[%emt
00:00:02]} 51. Qxb7+ {[%clk 00:11:32]} {[%emt 00:00:10]} Kxb7 {[%clk 00:06:07]}
{[%emt 00:00:02]} 52. Rxa5 {[%clk 00:11:51]} {[%emt 00:00:10]} 1/2-1/2

[Event "Senior Men Russian Championship 2022_HL"]
[Site "Saint-Petersburg, Russia"]
[Date "2022.09.26"]
[Round "3.3"]
[White "Loginov, Valery A"]
[Black "Provotorov, Alexandr P."]
[Result "0-1"]
[TimeControl "40+30"]
[WhiteElo "2478"]
[BlackElo "2277"]

1. Nf3 {[%clk 01:30:55]} {[%emt 00:00:04]} Nf6 {[%clk 01:30:11]} {[%emt
00:00:50]} 2. c4 {[%clk 01:31:17]} {[%emt 00:00:08]} d6 {[%clk 01:29:04]}
{[%emt 00:01:36]} 3. d4 {[%clk 01:31:38]} {[%emt 00:00:09]} c6 {[%clk
01:27:22]} {[%emt 00:02:12]} 4. Nc3 {[%clk 01:31:57]} {[%emt 00:00:11]} Nbd7
{[%clk 01:27:10]} {[%emt 00:00:42]} 5. e4 {[%clk 01:32:16]} {[%emt 00:00:12]}
e5 {[%clk 01:27:25]} {[%emt 00:00:14]} 6. Be2 {[%clk 01:32:37]} {[%emt
00:00:09]} Be7 {[%clk 01:27:47]} {[%emt 00:00:09]} 7. O-O {[%clk 01:32:41]}
{[%emt 00:00:25]} O-O {[%clk 01:28:10]} {[%emt 00:00:07]} 8. Rb1 {[%clk
01:27:55]} {[%emt 00:05:16]} Re8 {[%clk 01:24:44]} {[%emt 00:03:56]} 9. Re1
{[%clk 01:27:01]} {[%emt 00:01:24]} Bf8 {[%clk 01:21:54]} {[%emt 00:03:20]} 10.
Bf1 {[%clk 01:27:17]} {[%emt 00:00:14]} a6 {[%clk 01:21:25]} {[%emt 00:00:59]}
11. b4 {[%clk 01:25:59]} {[%emt 00:01:49]} exd4 {[%clk 01:08:56]} {[%emt
00:12:59]} 12. Nxd4 {[%clk 01:26:11]} {[%emt 00:00:18]} c5 {[%clk 01:09:05]}
{[%emt 00:00:21]} 13. Nc2 {[%clk 01:26:09]} {[%emt 00:00:31]} cxb4 {[%clk
01:05:26]} {[%emt 00:04:08]} 14. Nxb4 {[%clk 01:26:18]} {[%emt 00:00:22]} Nc5
{[%clk 01:05:42]} {[%emt 00:00:14]} 15. f3 {[%clk 01:21:39]} {[%emt 00:05:09]}
h6 {[%clk 00:53:49]} {[%emt 00:12:23]} 16. Be3 {[%clk 01:19:29]} {[%emt
00:02:40]} Be6 {[%clk 00:51:00]} {[%emt 00:03:18]} 17. Nbd5 {[%clk 01:06:35]}
{[%emt 00:13:25]} Rb8 {[%clk 00:48:12]} {[%emt 00:03:18]} 18. Rb2 {[%clk
01:01:24]} {[%emt 00:05:41]} Nxd5 {[%clk 00:38:32]} {[%emt 00:10:09]} 19. Nxd5
{[%clk 01:00:52]} {[%emt 00:01:03]} Qc8 {[%clk 00:31:45]} {[%emt 00:07:17]} 20.
g4 {[%clk 00:55:15]} {[%emt 00:06:07]} Bxd5 {[%clk 00:22:37]} {[%emt 00:09:38]}
21. Qxd5 {[%clk 00:55:24]} {[%emt 00:00:21]} Nd7 {[%clk 00:18:36]} {[%emt
00:04:31]} 22. Ba7 {[%clk 00:48:58]} {[%emt 00:06:56]} Re5 {[%clk 00:17:17]}
{[%emt 00:01:49]} 23. Qd2 {[%clk 00:48:44]} {[%emt 00:00:44]} Ra8 {[%clk
00:17:36]} {[%emt 00:00:11]} 24. Bd4 {[%clk 00:48:02]} {[%emt 00:01:11]} Re6
{[%clk 00:16:21]} {[%emt 00:01:45]} 25. Reb1 {[%clk 00:47:01]} {[%emt
00:01:32]} Nc5 {[%clk 00:15:43]} {[%emt 00:01:08]} 26. Qe3 {[%clk 00:42:37]}
{[%emt 00:04:54]} Rb8 {[%clk 00:15:14]} {[%emt 00:00:59]} 27. h4 {[%clk
00:41:19]} {[%emt 00:01:47]} Be7 {[%clk 00:14:08]} {[%emt 00:01:37]} 28. Rh2
{[%clk 00:40:24]} {[%emt 00:01:25]} Bf6 {[%clk 00:13:29]} {[%emt 00:01:09]} 29.
Bxf6 {[%clk 00:40:37]} {[%emt 00:00:17]} Rxf6 {[%clk 00:13:48]} {[%emt
00:00:12]} 30. g5 {[%clk 00:40:49]} {[%emt 00:00:17]} Re6 {[%clk 00:09:38]}
{[%emt 00:04:39]} 31. Bh3 {[%clk 00:40:07]} {[%emt 00:01:12]} h5 {[%clk
00:09:56]} {[%emt 00:00:13]} 32. Qd4 {[%clk 00:34:51]} {[%emt 00:05:46]} Qc7
{[%clk 00:08:35]} {[%emt 00:01:51]} 33. Bxe6 {[%clk 00:30:13]} {[%emt
00:05:09]} Nxe6 {[%clk 00:08:58]} {[%emt 00:00:06]} 34. Qe3 {[%clk 00:29:24]}
{[%emt 00:01:19]} Qxc4 {[%clk 00:08:09]} {[%emt 00:01:19]} 35. Rd2 {[%clk
00:27:36]} {[%emt 00:02:18]} b5 {[%clk 00:07:11]} {[%emt 00:01:27]} 36. a3
{[%clk 00:25:12]} {[%emt 00:02:54]} Qc5 {[%clk 00:06:30]} {[%emt 00:01:10]} 37.
Qxc5 {[%clk 00:22:59]} {[%emt 00:02:44]} dxc5 {[%clk 00:06:53]} {[%emt
00:00:07]} 38. Rd6 {[%clk 00:23:24]} {[%emt 00:00:05]} a5 {[%clk 00:06:10]}
{[%emt 00:01:13]} 39. Ra6 {[%clk 00:23:33]} {[%emt 00:00:21]} Nd4 {[%clk
00:06:27]} {[%emt 00:00:13]} 40. Kf2 {[%clk 00:53:47]} {[%emt 00:00:16]} c4
{[%clk 00:35:35]} {[%emt 00:01:22]} 41. g6 {[%clk 00:47:53]} {[%emt 00:06:24]}
fxg6 {[%clk 00:28:01]} {[%emt 00:08:04]} 42. Rd1 {[%clk 00:45:49]} {[%emt
00:02:33]} Nb3 {[%clk 00:27:22]} {[%emt 00:01:09]} 43. Rd7 {[%clk 00:45:38]}
{[%emt 00:00:41]} Nc5 {[%clk 00:27:37]} {[%emt 00:00:14]} 0-1